bitfinex/quotes_ETHUSD_20250505
["timestamp","ask_amount","ask_price","bid_price","bid_amount"]
[1746415747087,0.290789,1800.3,1800.1,0.837045]
[1746415748368,0.290789,1800.3,1800.2,0.4595]
[1746415754216,0.290789,1800.3,1800.1,0.837045]
[1746415754429,0.290789,1800.3,1800.0,7.91095]
[1746415758433,0.290789,1800.3,1800.1,0.05554384]
[1746415758595,0.290789,1800.3,1800.1,0.4595]
[1746415758798,0.290789,1800.3,1800.1,0.51504067]
[1746415759402,0.290789,1800.3,1800.1,0.4595]
[1746415759602,0.290789,1800.3,1800.1,1.35208522]
[1746415760531,0.290789,1800.3,1800.1,1.296545]
[1746415761436,0.290789,1800.3,1800.2,0.05554024]
[1746415763539,0.290789,1800.3,1800.1,1.296545]
[1746415764929,0.7872,1800.6,1800.1,1.296545]
[1746415765436,1.07791429,1800.6,1800.1,1.296545]
[1746415766132,0.29071429,1800.6,1800.1,1.296545]
[1746415766351,0.29071429,1800.6,1800.1,0.837045]
[1746415766634,0.29071429,1800.6,1800.2,6.6095]
[1746415766865,0.29071429,1800.6,1800.3,0.66095]
[1746415770406,0.29071429,1800.6,1800.3,6.81095]
[1746415771835,0.29071429,1800.6,1800.4,0.4595]
[1746415773254,0.28699868,1800.6,1800.4,0.4595]
[1746415774970,0.28699868,1800.6,1800.4,6.15]
[1746415775247,0.8226,1801.1,1800.5,1.0745]
[1746415775453,1.11322707,1801.1,1800.6,6.15]
[1746415775624,1.11322707,1801.1,1800.7,4.656]
[1746415775820,0.8226,1800.9,1800.7,4.656]
[1746415777236,2.44457991,1800.8,1800.4,4.656]
[1746415778419,2.44457991,1800.8,1800.4,5.802695]
[1746415779246,0.775,1800.8,1800.4,5.802695]
[1746415779448,0.775,1800.8,1800.5,0.05553339]
[1746415779653,0.775,1800.8,1800.4,5.802695]
[1746415780447,0.775,1800.7,1800.4,4.656]
[1746415790775,0.29066492,1800.6,1800.4,4.656]
[1746415791469,0.29066492,1800.6,1800.4,4.71153769]
[1746415792283,0.29066492,1800.6,1800.4,4.656]
[1746415793958,0.71011117,1800.6,1800.4,4.656]
[1746415794170,0.29066492,1800.6,1800.4,4.656]
[1746415795042,0.29066492,1800.6,1800.4,4.71153759]
[1746415795247,0.29066492,1800.6,1800.4,4.656]
[1746415798388,0.71002757,1800.6,1800.4,4.656]
[1746415799490,0.71002757,1800.6,1800.4,4.71153765]
[1746415799990,0.71002757,1800.6,1800.4,1.14169142]
[1746415800383,0.71002757,1800.6,1800.4,1.08615377]
[1746415801096,0.29066492,1800.6,1800.4,1.08615377]
[1746415801808,0.42206616,1801.1,1800.5,0.0555337]
[1746415802098,0.29065337,1800.9,1800.6,0.4595]
[1746415802298,0.29065337,1800.9,1800.6,5.1145]
[1746415803284,0.29065337,1800.9,1800.7,0.05552597]
[1746415804012,0.29065337,1800.9,1800.6,5.1145]
[1746415805102,0.29065337,1800.9,1800.7,0.055526]
[1746415805283,0.29065337,1800.9,1800.7,0.5725286]
[1746415806403,0.29065337,1800.9,1800.7,0.5170026]
[1746415806706,0.29065337,1800.9,1800.7,0.57252863]
[1746415806908,0.29065337,1800.9,1800.7,0.5170026]
[1746415807407,0.29065337,1800.9,1800.7,0.57252859]
[1746415808823,0.29065337,1800.9,1800.7,0.5170026]
[1746415814412,0.29065337,1800.9,1800.7,6.6670026]
[1746415814581,0.29065337,1800.9,1800.8,0.66670026]
[1746415816536,0.29065337,1800.9,1800.8,1.12620026]
[1746415816925,0.29065337,1800.9,1800.8,1.18172058]
[1746415817306,0.29065337,1800.9,1800.8,1.12620026]
[1746415817506,0.29065337,1800.9,1800.8,1.18172065]
[1746415819308,0.7979,1801.2,1800.8,1.18172065]
[1746415819606,1.08853174,1801.2,1800.8,1.18172065]
[1746415819830,1.08853174,1801.2,1800.8,1.12620026]
[1746415820956,1.08853174,1801.2,1800.9,0.05551797]
[1746415821251,1.08853174,1801.2,1800.8,1.12620026]
[1746415822452,2.75811165,1801.2,1800.8,0.66670026]
[1746415826935,1.08853174,1801.2,1800.9,0.05552023]
[1746415827622,1.08853174,1801.2,1801.0,1.0]
[1746415828166,0.29063174,1801.2,1801.1,0.05552023]
[1746415828518,0.29063174,1801.2,1801.1,0.05551292]
[1746415828716,0.29063174,1801.2,1801.0,1.4595]
[1746415829028,0.29063174,1801.2,1801.1,0.0555106]
[1746415829548,0.29063174,1801.2,1801.0,1.4595]
[1746415829961,0.29063174,1801.2,1801.1,0.05551083]
[1746415830551,0.29063174,1801.2,1801.0,1.4595]
[1746415830941,0.29063174,1801.2,1801.0,6.1115]
[1746415831143,0.29063174,1801.2,1801.1,0.66666081]
[1746415831522,0.29063174,1801.2,1801.1,0.61115]
[1746415843941,0.29063174,1801.2,1801.0,5.70751672]
[1746415844143,0.29063174,1801.2,1801.0,5.7038011]
[1746415845573,0.29063174,1801.2,1801.0,6.1633011]
[1746415845772,0.29063174,1801.2,1801.0,6.10778438]
[1746415849677,0.29063174,1801.2,1801.0,12.25778438]
[1746415849971,0.29063174,1801.2,1801.1,1.22577844]
[1746415856697,1.05543174,1801.2,1801.0,11.79828438]
[1746415857498,1.05543174,1801.2,1801.1,0.05551524]
[1746415858262,1.05543174,1801.2,1801.0,11.79828438]
[1746415859696,1.05543174,1801.2,1801.1,0.05551526]
[1746415860297,1.05543174,1801.2,1801.0,11.79828438]
[1746415861711,0.29063174,1801.2,1801.0,11.79828438]
[1746415862787,0.29063174,1801.2,1801.1,0.05551632]
[1746415863205,0.29063174,1801.2,1801.0,7.14628438]
[1746415863417,0.29063174,1801.2,1801.1,0.71462844]
[1746415873950,0.29063174,1801.2,1801.1,0.77013954]
[1746415874341,0.29063174,1801.2,1801.1,0.71462844]
[1746415875804,0.29063174,1801.2,1801.1,0.77013966]
[1746415876438,0.29063174,1801.2,1801.1,0.71462844]
[1746415882336,0.29063174,1801.2,1801.1,0.77013968]
[1746415882542,0.29063174,1801.2,1801.1,0.71462844]
[1746415884047,0.29063174,1801.2,1801.1,0.77013979]
[1746415889013,0.29063174,1801.2,1801.1,10.37963979]
[1746415889326,0.2905462,1801.7,1801.2,0.4595]
[1746415889533,0.2905462,1801.7,1801.3,6.15]
[1746415889840,0.2905462,1801.7,1801.4,4.645]
[1746415890216,1.48129345,1801.7,1801.4,4.645]
[1746415890457,0.2905462,1801.7,1801.4,4.645]
[1746415890637,0.2905462,1801.7,1801.4,5.1045]
[1746415890837,0.2905462,1801.7,1801.5,0.51045]
[1746415893585,0.2905462,1801.7,1801.5,6.66045]
[1746415895144,0.8037,1802.0,1801.5,6.66045]
[1746415895334,0.29052473,1801.9,1801.5,6.66045]
[1746415895967,0.29052473,1801.9,1801.6,0.4595]
[1746415896186,0.29052473,1801.9,1801.7,6.15]
[1746415904301,0.7502,1802.2,1801.7,6.15]
[1746415904455,0.7502,1802.2,1801.8,5.1035]
[1746415904793,1.06629723,1802.3,1801.8,5.1035]
[1746415904993,1.06629723,1802.3,1801.9,6.20548457]
[1746415905191,1.06629723,1802.3,1802.0,0.62054846]
[1746415907163,1.06629723,1802.3,1802.1,0.05548459]
[1746415909002,1.06629723,1802.3,1802.0,0.62054846]
[1746415909382,1.06629723,1802.3,1802.1,0.05548458]
[1746415911302,1.06629723,1802.3,1802.0,0.62054846]
[1746415911501,1.06629723,1802.3,1802.1,0.05548459]
[1746415912102,1.06629723,1802.3,1802.0,0.62054846]
[1746415914118,1.06629723,1802.3,1802.0,6.77054846]
[1746415914300,1.06629723,1802.3,1802.1,0.67705485]
[1746415915613,1.06629723,1802.3,1802.0,6.15]
[1746415917316,1.06629723,1802.3,1802.0,7.15]
[1746415918810,0.29049723,1802.3,1802.0,7.15]
[1746415919011,0.29049723,1802.3,1802.0,7.6095]
[1746415919613,0.29049723,1802.3,1802.1,0.05548122]
[1746415919811,0.29049723,1802.3,1802.1,0.76649812]
[1746415920177,0.29049723,1802.3,1802.1,0.82197656]
[1746415920384,0.29049723,1802.3,1802.1,0.76649812]
[1746415922932,0.29049723,1802.3,1802.1,6.91649812]
[1746415923218,0.791,1802.2,1802.0,1.0]
[1746415925698,0.791,1802.2,1801.8,4.639]
[1746415926198,0.791,1802.2,1801.9,0.05549122]
[1746415926535,0.29050284,1802.1,1801.9,0.05549122]
[1746415927727,0.29050284,1802.1,1801.8,4.639]
[1746415927906,0.29050284,1802.1,1801.9,0.05549122]
[1746415930037,0.29050284,1802.1,1801.8,5.7179]
[1746415930333,0.29050284,1802.1,1801.9,0.05548458]
[1746415930656,0.29050284,1802.1,1801.8,5.7179]
[1746415932202,0.29050284,1802.1,1801.9,0.4595]
[1746415932402,0.29050284,1802.1,1801.9,1.07724]
[1746415934041,0.29050284,1802.1,1802.0,6.15]
[1746415937048,0.8032,1802.4,1802.0,6.15]
[1746415937334,1.09366641,1802.4,1802.0,6.15]
[1746415938337,1.09366641,1802.4,1802.1,4.639]
[1746415938545,1.09366641,1802.4,1802.2,0.4639]
[1746415946055,0.29046641,1802.4,1802.2,12.16264544]
[1746415946215,0.40943632,1803.1,1802.4,0.4595]
[1746415946558,0.7793,1803.3,1802.6,0.4595]
[1746415946872,0.7793,1803.3,1802.7,0.055458]
[1746415947019,0.7793,1803.3,1802.6,6.6095]
[1746415947847,1.66640388,1803.2,1802.6,6.6095]
[1746415952256,1.66640388,1803.2,1802.7,6.15]
[1746415952452,1.66640388,1803.2,1802.8,0.615]
[1746415952659,1.66640388,1803.2,1802.8,6.765]
[1746415954965,0.7793,1803.3,1802.8,6.765]
[1746415955131,0.7793,1803.3,1802.9,0.05545659]
[1746415955332,0.7592,1803.1,1802.9,4.634]
[1746415955837,1.66640388,1803.2,1802.9,4.68945965]
[1746415956327,1.66640388,1803.2,1802.9,4.634]
[1746415957734,1.66640388,1803.2,1802.9,4.68945953]
[1746415958034,1.66640388,1803.2,1802.9,4.634]
[1746415958472,1.66640388,1803.2,1802.9,4.68945962]
[1746415958960,1.66640388,1803.2,1802.9,5.81935558]
[1746415959566,1.66640388,1803.2,1802.9,5.76389596]
[1746415961060,1.66640388,1803.2,1802.9,5.81935559]
[1746415961265,1.66640388,1803.2,1802.9,5.76389596]
[1746415962275,0.8212,1803.1,1802.9,5.76389596]
[1746415962441,1.11167204,1803.1,1802.9,5.76389596]
[1746415968453,1.66640388,1803.0,1802.9,4.634]
[1746415968655,0.7928,1802.9,1802.5,10.783]
[1746415968976,1.66640388,1802.7,1802.5,10.783]
[1746415969985,1.66640388,1802.7,1802.5,6.15]
[1746415970178,2.45920388,1802.8,1802.5,7.2283]
[1746415971259,2.45920388,1802.8,1802.5,6.15]
[1746415972798,2.45920388,1802.8,1802.4,4.68847446]
[1746415975385,2.45920388,1802.8,1802.4,4.633]
[1746415975694,2.45920388,1802.8,1802.5,0.0554729]
[1746415976092,2.45920388,1802.8,1802.4,5.0925]
[1746415976296,2.45920388,1802.8,1802.5,0.50925]
[1746415977699,2.74972027,1802.8,1802.5,0.50925]
[1746415979897,0.29051639,1802.8,1802.5,0.50925]
[1746415982104,1.12101639,1802.8,1802.5,0.50925]
[1746415982397,2.78742027,1802.8,1802.5,0.50925]
[1746415982619,0.8305,1802.7,1802.4,4.633]
[1746415983173,0.8305,1802.7,1802.4,4.68847458]
[1746415984068,1.25520316,1802.8,1802.4,5.14797458]
[1746415984298,1.25520316,1802.8,1802.4,5.0925]
[1746415984505,1.25520316,1802.8,1802.5,0.50925]
[1746415984821,0.8305,1802.8,1802.6,0.05547482]
[1746415984979,0.7743,1803.0,1802.6,0.05547482]
[1746415985184,0.7743,1803.0,1802.4,5.0925]
[1746415987024,0.7743,1803.0,1802.4,4.633]
[1746415987206,0.7757,1803.1,1802.5,0.9228]
[1746415987414,0.7757,1803.1,1802.7,0.4595]
[1746415989499,2.44210388,1803.1,1802.7,0.4595]
[1746415990420,2.44210388,1803.1,1802.7,6.6095]
[1746415990658,2.44210388,1803.1,1802.8,0.66095]
[1746415991621,0.7757,1803.1,1802.8,0.66095]
[1746415993407,0.7757,1803.1,1802.7,6.15]
[1746415994730,1.66640388,1803.0,1802.7,6.15]
[1746415997931,0.7757,1803.1,1802.8,0.51496301]
[1746416000121,0.7757,1803.1,1802.8,0.4595]
[1746416001942,0.7757,1803.1,1802.8,0.51496293]
[1746416002449,0.7757,1803.1,1802.8,0.4595]
[1746416003254,0.8242,1803.3,1802.8,1.58355]
[1746416003459,2.49060388,1803.3,1802.8,1.58355]
[1746416007953,2.49060388,1803.3,1802.9,6.15]
[1746416010165,0.8101,1803.4,1803.0,0.51495512]
[1746416010326,1.66640388,1803.5,1803.0,0.4595]
[1746416010528,1.66640388,1803.5,1803.0,1.58335]
[1746416010856,2.0934632,1803.5,1803.0,1.58335]
[1746416012264,1.66640388,1803.5,1803.0,1.58335]
[1746416013168,7.629,1803.8,1803.0,1.12385]
[1746416013169,1.66640388,1803.3,1803.0,1.12385]
[1746416013455,1.66640388,1803.3,1803.0,1.17930482]
[1746416014564,1.66640388,1803.3,1803.0,1.12385]
[1746416015046,0.8169,1803.4,1803.0,1.12385]
[1746416015248,1.66640388,1803.5,1803.0,7.27385]
[1746416015571,1.66640388,1803.5,1803.2,0.4595]
[1746416018532,2.46050388,1803.6,1803.2,0.4595]
[1746416019638,1.66640388,1803.6,1803.2,0.4595]
[1746416019954,1.66640388,1803.6,1803.2,6.6095]
[1746416020864,6.9654,1804.4,1803.3,0.4595]
[1746416021068,1.66640388,1803.8,1803.4,0.4595]
[1746416022485,3.0,1804.1,1803.3,11.43895]
[1746416022486,1.66640388,1803.6,1803.3,11.43895]
[1746416022691,1.66640388,1803.4,1803.3,6.81095]
[1746416022857,1.66640388,1803.4,1803.1,5.355385]
[1746416023587,1.66640388,1803.4,1803.1,5.814885]
[1746416024867,3.41046851,1803.8,1803.2,0.4595]
[1746416024868,1.66640388,1803.7,1803.2,0.4595]
[1746416025072,1.66640388,1803.7,1803.2,7.1909885]
[1746416025797,1.66640388,1803.5,1803.2,7.1909885]
[1746416026991,1.66640388,1803.5,1803.2,6.7314885]
[1746416030080,2.43940388,1803.7,1803.3,0.51495207]
[1746416030292,1.66640388,1803.7,1803.3,0.51495207]
[1746416030597,1.66640388,1803.7,1803.3,1.23959613]
[1746416032299,1.66640388,1803.7,1803.3,1.18414406]
[1746416032597,2.46710388,1803.7,1803.3,1.18414406]
[1746416033263,2.46710388,1803.7,1803.3,1.23959222]
[1746416034806,0.8175,1803.9,1803.3,1.18414406]
[1746416034989,1.66640388,1803.7,1803.3,7.33414406]
[1746416038207,2.08915596,1803.8,1803.4,0.05544295]
[1746416038415,1.66640388,1803.8,1803.4,0.05544295]
[1746416038709,1.66640388,1803.8,1803.4,0.7389587]
[1746416039909,1.66640388,1803.6,1803.4,0.7389587]
[1746416040112,1.66640388,1803.6,1803.3,6.6095]
[1746416044116,2.07980876,1803.8,1803.3,6.6095]
[1746416045019,2.07980876,1803.8,1803.3,6.66494691]
[1746416045619,2.07980876,1803.8,1803.3,6.6095]
[1746416045819,2.07980876,1803.8,1803.3,7.32859885]
[1746416046913,2.07980876,1803.8,1803.3,7.38404575]
[1746416047918,2.07980876,1803.8,1803.3,7.32859885]
[1746416050486,2.07980876,1803.8,1803.3,7.38404573]
[1746416051525,2.07980876,1803.8,1803.3,7.32859885]
[1746416052028,2.36953964,1803.8,1803.3,11.95459885]
[1746416053920,0.8103,1803.7,1803.3,11.95459885]
[1746416059541,1.66640388,1803.6,1803.3,11.95459885]
[1746416059742,1.66640388,1803.6,1803.3,0.4595]
[1746416060042,1.66640388,1803.6,1803.2,5.0855]
[1746416065247,1.66640388,1803.4,1803.1,4.624]
[1746416065661,1.66640388,1803.4,1803.0,6.6095]
[1746416065946,1.66640388,1803.4,1803.0,7.26509334]
[1746416069060,1.66640388,1803.2,1802.9,4.624]
[1746416069470,0.8037,1803.5,1802.9,4.67946539]
[1746416069634,1.66640388,1803.4,1803.0,0.4595]
[1746416076053,0.7972,1803.3,1802.9,4.624]
[1746416076354,0.7972,1803.3,1802.9,5.13235]
[1746416076844,1.21198653,1803.3,1802.9,5.13235]
[1746416082626,1.66640388,1803.0,1802.6,6.15]
[1746416082963,0.8266,1802.9,1802.6,6.15]
[1746416085147,1.66640388,1803.0,1802.6,6.6095]
[1746416085348,2.09072505,1803.0,1802.6,6.6095]
[1746416086071,2.09072505,1803.0,1802.7,0.66095]
[1746416092178,2.08872505,1803.0,1802.7,0.66095]
[1746416092382,0.42432117,1803.0,1802.7,0.66095]
[1746416092553,2.48810388,1803.1,1802.7,0.66095]
[1746416095582,2.90691335,1803.1,1802.7,0.66095]
[1746416102203,0.7719,1802.8,1802.3,6.15]
[1746416102356,0.7719,1802.8,1802.4,4.624]
[1746416102357,1.66640388,1802.7,1802.4,4.624]
[1746416103692,0.7676,1802.6,1802.4,4.624]
[1746416104158,1.18511552,1802.6,1802.4,4.624]
[1746416104661,1.66640388,1802.5,1802.3,6.15]
[1746416105210,0.8214,1802.4,1802.3,6.15]
[1746416105356,0.8214,1802.4,1802.1,8.32804031]
[1746416105563,0.8214,1802.4,1802.1,9.77584434]
[1746416107865,0.8214,1802.4,1802.1,6.07180403]
[1746416112301,0.8214,1802.4,1802.1,4.624]
[1746416120103,0.8214,1802.4,1802.1,4.67948595]
[1746416120302,0.8214,1802.4,1802.1,4.624]
[1746416127718,2.48780388,1802.4,1802.1,4.624]
[1746416127880,0.7745,1802.3,1802.1,4.624]
[1746416132695,0.7745,1802.3,1801.9,4.623]
[1746416133895,0.7732,1802.1,1801.9,4.623]
[1746416134416,0.7958,1802.5,1801.9,4.623]
[1746416134847,0.7958,1802.5,1802.0,0.4595]
[1746416135204,0.7958,1802.8,1802.2,0.4595]
[1746416135432,0.7958,1802.8,1802.4,0.4595]
[1746416135646,0.7958,1802.8,1802.4,1.58275]
[1746416138851,0.8007,1802.9,1802.4,1.58275]
[1746416140412,2.43080388,1803.1,1802.4,1.58275]
[1746416141613,2.83880868,1803.1,1802.4,1.58275]
[1746416145118,2.83880868,1803.1,1802.4,1.12325]
[1746416145322,2.83880868,1803.1,1802.5,0.4595]
[1746416145841,2.83880868,1803.1,1802.5,6.6095]
[1746416146017,2.83880868,1803.1,1802.6,0.66095]
[1746416148255,1.66640388,1802.9,1802.6,0.66095]
[1746416148468,0.8259,1802.8,1802.5,6.15]
[1746416149472,1.66640388,1802.7,1802.5,6.15]
[1746416149636,1.66640388,1802.7,1802.3,5.0825]
[1746416154888,0.8259,1802.8,1802.3,5.0825]
[1746416155057,2.49230388,1802.8,1802.3,5.59075]
[1746416157672,0.8259,1802.8,1802.3,5.59075]
[1746416167032,0.8259,1802.8,1802.4,4.62]
[1746416169923,0.8259,1802.8,1802.4,4.67547632]
[1746416170825,0.8259,1802.8,1802.4,4.62]
[1746416171044,0.8259,1802.8,1802.5,0.462]
[1746416175149,0.8259,1802.8,1802.4,10.77]
[1746416175453,0.8126,1802.6,1802.4,10.77]
[1746416178170,0.8126,1802.6,1802.4,4.62]
[1746416181565,0.8126,1802.6,1802.3,4.62]
[1746416186030,0.8126,1802.6,1802.3,4.6754761]
[1746416186232,0.7802,1802.8,1802.4,0.92704761]
[1746416186436,0.7802,1802.8,1802.5,0.05547063]
[1746416188968,0.7802,1802.8,1802.4,0.92704761]
[1746416189543,4.66640388,1803.1,1802.5,0.05547082]
[1746416189544,0.8011,1803.0,1802.5,0.05547082]
[1746416189756,0.8011,1803.0,1802.6,0.4595]
[1746416190242,0.8011,1803.0,1802.6,1.12045]
[1746416190778,0.8011,1803.0,1802.7,0.05546604]
[1746416191508,0.8011,1803.0,1802.6,1.12045]
[1746416191672,0.8011,1803.0,1802.5,6.15]
[1746416195474,0.8011,1803.0,1802.6,0.4595]
[1746416195677,0.8011,1803.0,1802.7,4.617]
[1746416197103,0.8066,1803.2,1802.8,0.05546615]
[1746416197304,0.8066,1803.2,1802.8,0.51496615]
[1746416197505,0.8066,1803.2,1802.8,1.58769661]
[1746416199312,0.8066,1803.4,1802.8,1.58769661]
[1746416199610,2.47300388,1803.4,1802.8,1.58769661]
[1746416203324,0.8066,1803.4,1802.8,1.58769661]
[1746416203531,2.47300388,1803.4,1802.8,1.58769661]
[1746416205516,2.47300388,1803.4,1802.9,0.4595]
[1746416207514,2.47300388,1803.4,1802.9,6.6095]
[1746416207700,2.47300388,1803.4,1803.0,0.66095]
[1746416212037,1.66640388,1803.5,1803.1,0.4595]
[1746416215034,1.66640388,1803.7,1803.1,4.616]
[1746416215215,1.66640388,1803.7,1803.2,0.4595]
[1746416215524,1.66640388,1803.7,1803.2,1.58205]
[1746416222946,1.66640388,1803.5,1803.2,1.58205]
[1746416224709,1.66640388,1803.5,1803.2,0.4595]
[1746416226060,1.66640388,1803.5,1803.1,10.766]
[1746416226355,2.46670388,1803.5,1803.1,10.766]
[1746416229922,1.66640388,1803.3,1803.1,10.766]
[1746416230133,1.66640388,1803.3,1803.1,4.616]
[1746416231057,1.66640388,1803.3,1803.0,0.4595]
[1746416231432,2.43650388,1803.3,1802.9,4.613]
[1746416237525,1.66640388,1803.3,1802.9,5.12025]
[1746416237825,1.66640388,1803.3,1803.0,0.4595]
[1746416240986,1.66640388,1803.3,1802.9,5.0725]
[1746416241829,2.46910388,1803.3,1802.9,5.0725]
[1746416243478,1.66640388,1803.1,1802.8,4.614]
[1746416243765,0.7934,1803.0,1802.8,4.614]
[1746416244669,2.45980388,1803.1,1802.8,4.614]
[1746416245435,2.45980388,1803.3,1802.8,6.1499]
[1746416246558,1.66640388,1803.1,1802.8,5.0735]
[1746416247162,2.45980388,1803.3,1802.8,5.0735]
[1746416248184,0.8285,1803.2,1802.8,4.614]
[1746416248689,1.66640388,1803.1,1802.8,4.614]
[1746416249491,0.8285,1803.0,1802.8,4.614]
[1746416253972,1.66640388,1802.9,1802.8,4.614]
[1746416255156,1.66640388,1802.9,1802.6,4.611]
[1746416262464,1.66640388,1802.7,1802.2,6.15]
[1746416262799,1.66640388,1802.7,1802.3,5.0715]
[1746416266305,1.66640388,1802.7,1802.3,4.612]
[1746416266982,0.798,1802.6,1802.3,4.612]
[1746416283319,0.29061683,1802.5,1802.3,4.612]
[1746416286739,0.29061683,1802.5,1802.3,4.66747758]
[1746416287039,0.29061683,1802.5,1802.4,0.92624776]
[1746416289591,0.7762,1803.0,1802.4,0.92624776]
[1746416290127,0.29059501,1802.7,1802.4,0.92624776]
[1746416290422,0.29059627,1802.9,1802.5,0.05546897]
[1746416290624,0.29059627,1802.9,1802.4,0.92624776]
[1746416292532,0.29059627,1802.9,1802.5,0.05546888]
[1746416292734,0.29059627,1802.9,1802.4,0.92624776]
[1746416293745,0.29059627,1802.9,1802.5,0.05546886]
[1746416294051,2.45330388,1802.8,1802.4,0.46674776]
[1746416297140,2.45330388,1802.8,1802.3,5.0685]
[1746416297352,2.45330388,1802.8,1802.3,0.4595]
[1746416297649,2.47750388,1802.6,1802.3,4.609]
[1746416297847,2.47750388,1802.6,1802.2,6.15]
[1746416297848,1.66640388,1802.4,1802.2,4.609]
[1746416298030,2.47750388,1802.4,1802.2,4.609]
[1746416300953,2.76669495,1802.4,1802.2,4.609]
[1746416301253,1.10029107,1802.4,1802.2,4.609]
[1746416301430,0.8111,1802.4,1802.2,4.609]
[1746416303047,1.66640388,1802.5,1802.2,4.609]
[1746416303450,0.7699,1802.6,1802.2,4.66448441]
[1746416303648,6.9099,1802.8,1802.3,0.4595]
[1746416303834,6.9099,1802.8,1802.3,0.96635]
[1746416304528,0.29059627,1802.9,1802.4,0.4595]
[1746416304949,0.29059627,1802.9,1802.4,6.6095]
[1746416306462,0.29059627,1802.9,1802.5,0.4595]
[1746416306629,0.29059627,1802.9,1802.6,4.609]
[1746416306825,0.29059627,1802.9,1802.6,5.11585]
[1746416307433,0.7607,1802.8,1802.6,4.609]
[1746416310556,0.29059627,1802.9,1802.6,4.609]
[1746416319172,0.29059627,1802.9,1802.6,5.0685]
[1746416319533,1.66640388,1802.8,1802.6,4.609]
[1746416319944,0.7895,1802.7,1802.6,4.609]
[1746416320153,0.7895,1802.7,1802.4,6.15]
[1746416320370,1.66640388,1802.5,1802.4,6.15]
[1746416320586,1.66640388,1802.5,1802.3,4.606]
[1746416325097,1.66640388,1802.5,1802.0,24.9775]
[1746416325098,0.7895,1802.4,1802.0,18.8275]
[1746416325261,0.7895,1802.4,1802.0,22.974]
[1746416325262,1.66640388,1802.2,1802.0,22.974]
[1746416325461,1.66640388,1802.2,1802.0,4.606]
[1746416326274,1.66640388,1802.2,1801.8,0.4595]
[1746416326477,1.66640388,1802.2,1801.8,1.58105]
[1746416326665,0.7895,1802.1,1801.8,0.4595]
[1746416326865,0.7895,1802.1,1801.7,10.756]
[1746416327097,1.66640388,1802.0,1801.7,4.606]
[1746416329203,1.66640388,1801.8,1801.7,4.606]
[1746416329358,2.46770388,1801.8,1801.7,4.606]
[1746416329763,2.46770388,1802.0,1801.7,4.606]
[1746416332309,2.8908245,1802.0,1801.7,4.606]
[1746416332824,3.17990695,1802.0,1801.7,4.606]
[1746416335899,0.29054874,1801.9,1801.7,4.606]
[1746416336510,1.66640388,1801.8,1801.7,4.606]
[1746416337010,0.29054874,1801.9,1801.7,4.606]
[1746416339910,0.29054874,1801.9,1801.8,0.4595]
[1746416340091,0.29054874,1801.9,1801.8,0.96605]
[1746416342016,0.29054874,1801.9,1801.8,7.11605]
[1746416342215,0.8235,1802.6,1801.9,0.4595]
[1746416342508,0.29051906,1802.5,1802.0,0.4595]
[1746416342714,2.48990388,1802.6,1802.1,4.608]
[1746416343704,0.8235,1802.6,1802.2,0.51497965]
[1746416344611,1.66640388,1802.7,1802.2,0.4595]
[1746416345314,1.66640388,1802.7,1802.2,6.6095]
[1746416346215,0.8235,1803.0,1802.3,0.4595]
[1746416346424,0.8235,1803.0,1802.4,0.4595]
[1746416346425,2.48990388,1803.0,1802.4,0.4595]
[1746416347094,1.66640388,1803.1,1802.4,0.4595]
[1746416347293,1.66640388,1803.1,1802.5,5.0655]
[1746416347494,1.66640388,1803.1,1802.6,0.4595]
[1746416347689,3.8235,1803.2,1802.6,0.4595]
[1746416347900,3.0,1803.2,1802.6,0.4595]
[1746416351311,2.73872329,1803.3,1802.7,0.4595]
[1746416352718,1.66640388,1803.1,1802.7,0.4595]
[1746416352907,1.66640388,1803.1,1802.7,1.12045]
[1746416358424,0.2905302,1803.0,1802.7,1.12045]
[1746416360234,0.2905302,1803.0,1802.8,0.5149589]
[1746416360413,0.2905302,1803.0,1802.9,5.0635]
[1746416376251,0.2905302,1803.0,1802.9,4.604]
[1746416376452,0.2905302,1803.0,1802.9,5.0644]
[1746416381264,0.2905302,1803.0,1802.9,4.604]
[1746416393845,0.2905302,1803.0,1802.7,6.81095]
[1746416394046,0.2905302,1803.0,1802.8,4.603]
[1746416395486,0.2905302,1803.0,1802.7,6.81095]
[1746416395783,0.2905302,1803.0,1802.8,4.603]
[1746416395784,1.95693408,1803.0,1802.8,4.603]
[1746416396083,0.2905302,1803.0,1802.8,4.603]
[1746416397489,0.2905302,1803.0,1802.8,5.0625]
[1746416406207,0.2905302,1803.0,1802.8,4.603]
[1746416410121,0.8255,1803.1,1802.8,4.603]
[1746416410312,0.8255,1803.1,1802.9,0.4603]
[1746416410715,0.8255,1803.1,1802.8,4.603]
[1746416414313,0.29050638,1803.0,1802.8,4.603]
[1746416416728,0.7529,1802.9,1802.7,4.602]
[1746416417229,2.41930388,1802.9,1802.7,4.602]
[1746416417526,0.7884,1802.8,1802.7,4.602]
[1746416417890,0.7884,1802.8,1802.5,4.602]
[1746416418087,0.7884,1802.6,1802.5,4.602]
[1746416419695,1.09921751,1802.6,1802.5,4.602]
[1746416420221,0.7884,1802.5,1802.2,26.67004031]
[1746416420403,2.45480388,1802.5,1802.2,26.67004031]
[1746416420805,0.31081751,1802.4,1802.2,26.67004031]
[1746416421799,0.31024097,1802.3,1802.2,26.67004031]
[1746416422156,0.31024097,1802.3,1802.2,8.30604031]
[1746416422636,1.11114097,1802.3,1802.2,8.30604031]
[1746416422839,2.77754485,1802.3,1802.2,3.70404031]
[1746416423132,2.77754485,1802.3,1802.0,4.602]
[1746416423640,0.31024097,1802.2,1802.0,4.602]
[1746416424633,0.31024097,1802.1,1802.0,4.602]
[1746416425347,2.77754485,1802.1,1802.0,4.602]
[1746416425502,3.47255282,1802.1,1802.0,4.602]
[1746416425706,0.8009,1802.0,1801.7,4.603]
[1746416426303,0.31024097,1801.9,1801.7,4.603]
[1746416427403,0.8009,1802.0,1801.7,4.603]
[1746416428945,0.3087275,1801.9,1801.7,4.603]
[1746416429516,0.59925664,1801.9,1801.7,4.603]